bitfinex/quotes_SOLUSD_20230905
["timestamp","ask_amount","ask_price","bid_price","bid_amount"]
[1693919941595,7.926,19.681,19.67,31.45]
[1693919941794,7.925,19.683,19.67,31.45]
[1693919942104,4.34030368,19.682,19.67,31.45]
[1693919942488,7.926,19.682,19.67,31.45]
[1693919942699,4.34030368,19.681,19.67,31.45]
[1693919942888,12.26630368,19.681,19.67,31.45]
[1693919943503,4.34030368,19.681,19.67,31.45]
[1693919943694,59.34030368,19.682,19.67,31.45]
[1693919943889,7.926,19.681,19.663,85.213373]
[1693919944187,89.457,19.674,19.66,31.45]
[1693919944386,7.931,19.67,19.651,25.36393245]
[1693919944588,4.34030368,19.669,19.652,0.60430668]
[1693919944791,59.34030368,19.669,19.652,0.60430668]
[1693919945391,67.27130368,19.669,19.652,20.60430668]
[1693919945791,4.34030368,19.669,19.66,31.45]
[1693919945996,4.34030368,19.672,19.66,31.45]
[1693919946316,7.93,19.671,19.66,31.45]
[1693919946500,4.34030368,19.67,19.66,31.45]
[1693919946806,12.27130368,19.67,19.66,31.45]
[1693919949394,12.27130368,19.67,19.652,86.5351]
[1693919949595,55.0,19.669,19.653,75.60430668]
[1693919949794,4.34030368,19.668,19.653,75.60430668]
[1693919949999,4.34030368,19.668,19.66,31.45]
[1693919952314,4.34030368,19.67,19.66,31.45]
[1693919952502,59.34030368,19.67,19.66,31.45]
[1693919953110,67.27030368,19.67,19.66,31.45]
[1693919953814,4.34030368,19.67,19.66,31.45]
[1693919954002,4.34030368,19.671,19.66,31.45]
[1693919954203,12.27030368,19.671,19.66,31.45]
[1693919955309,55.0,19.67,19.66,31.45]
[1693919955497,4.34030368,19.669,19.66,31.45]
[1693919956611,12.27130368,19.669,19.66,31.45]
[1693919956811,55.0,19.668,19.66,31.45]
[1693919957116,4.34030368,19.667,19.66,31.45]
[1693919957602,4.34030368,19.67,19.66,31.45]
[1693919957798,59.34030368,19.67,19.66,31.45]
[1693919958005,4.34030368,19.67,19.66,31.45]
[1693919958204,4.34030368,19.672,19.66,31.45]
[1693919958404,12.27030368,19.672,19.66,31.45]
[1693919963020,4.34030368,19.672,19.66,31.45]
[1693919963220,4.34030368,19.672,19.661,55.0]
[1693919968109,12.27030368,19.672,19.661,55.0]
[1693919968512,12.27030368,19.672,19.66,31.45]
[1693919972209,4.34030368,19.672,19.66,31.45]
[1693919972415,12.27030368,19.672,19.66,31.45]
[1693919972621,12.27030368,19.672,19.661,55.0]
[1693919980630,12.27030368,19.672,19.66,43.21629]
[1693919981229,12.27030368,19.672,19.66,31.45]
[1693919997546,4.34030368,19.67,19.66,31.45]
[1693919998937,12.27130368,19.67,19.66,31.45]
[1693920006648,7.932,19.667,19.66,31.45]
[1693920006955,4.34030368,19.666,19.66,31.45]
[1693920008149,4.34030368,19.666,19.653,20.0]
[1693920008354,4.34030368,19.668,19.654,20.0]
[1693920008547,4.34030368,19.668,19.651,20.0]
[1693920008745,7.932,19.667,19.652,0.60430668]
[1693920009059,4.34030368,19.666,19.652,0.60430668]
[1693920009551,4.34030368,19.668,19.652,0.60430668]
[1693920009955,4.34030368,19.668,19.652,55.60430668]
[1693920010157,12.27130368,19.668,19.653,20.0]
[1693920010361,12.27130368,19.668,19.654,0.60430668]
[1693920014861,12.27130368,19.668,19.653,20.0]
[1693920015357,12.27130368,19.668,19.654,0.60430668]
[1693920015672,12.27130368,19.668,19.653,20.0]
[1693920016044,4.34030368,19.668,19.653,20.0]
[1693920016243,4.34030368,19.668,19.655,0.60430668]
[1693920016443,4.34030368,19.668,19.655,20.0]
[1693920017461,12.27130368,19.668,19.655,20.0]
[1693920028976,4.34030368,19.668,19.66,31.45]
[1693920029175,91.8982,19.671,19.66,31.45]
[1693920029176,4.34030368,19.67,19.66,31.45]
[1693920030973,12.27030368,19.67,19.66,31.45]
[1693920033180,4.34030368,19.67,19.66,31.45]
[1693920033378,7.93,19.671,19.66,31.45]
[1693920033578,4.34030368,19.67,19.66,31.45]
[1693920033785,12.27030368,19.67,19.66,31.45]
[1693920046385,4.34030368,19.67,19.66,31.45]
[1693920046691,4.34030368,19.671,19.66,31.45]
[1693920048493,12.27030368,19.672,19.66,31.45]
[1693920055300,37.89030368,19.672,19.66,31.45]
[1693920055500,55.0,19.671,19.66,31.45]
[1693920055701,12.27130368,19.67,19.66,31.45]
[1693920056803,4.34030368,19.67,19.66,31.45]
[1693920057004,12.27130368,19.67,19.66,31.45]
[1693920060802,4.34030368,19.67,19.66,31.45]
[1693920061011,7.93,19.67,19.66,31.45]
[1693920061197,4.34030368,19.669,19.66,31.45]
[1693920061396,12.27130368,19.669,19.66,31.45]
[1693920061910,4.34030368,19.669,19.66,31.45]
[1693920062114,4.34030368,19.67,19.66,31.45]
[1693920062317,12.27130368,19.67,19.66,31.45]
[1693920068514,11.77130368,19.67,19.66,31.45]
[1693920082613,11.77130368,19.67,19.655,20.0]
[1693920082827,55.0,19.669,19.654,20.0]
[1693920083125,11.77130368,19.668,19.655,1.04728825]
[1693920083533,3.84030368,19.668,19.655,1.04728825]
[1693920083731,3.84030368,19.669,19.66,31.45]
[1693920083912,3.84030368,19.672,19.66,30.95]
[1693920084112,11.77030368,19.672,19.66,30.95]
[1693920086924,11.77030368,19.672,19.655,42.71928]
[1693920087122,55.0,19.671,19.656,1.06267276]
[1693920087321,3.84030368,19.67,19.655,11.76928]
[1693920087726,3.84030368,19.67,19.656,0.65926295]
[1693920088727,3.84030368,19.67,19.656,55.65926295]
[1693920089330,3.84030368,19.67,19.656,55.0]
[1693920091631,3.84030368,19.67,19.657,0.58501775]
[1693920091934,43.22130368,19.67,19.655,11.76928]
[1693920092228,55.0,19.669,19.655,11.76928]
[1693920092418,7.932,19.665,19.655,11.76928]
[1693920092618,3.84030368,19.664,19.655,11.76928]
[1693920093225,3.84030368,19.664,19.654,20.0]
[1693920093541,3.84030368,19.664,19.655,20.0]
[1693920093727,3.84030368,19.664,19.651,20.0]
[1693920093921,3.84030368,19.664,19.652,56.10430668]
[1693920094121,3.84030368,19.664,19.653,20.0]
[1693920094325,3.84030368,19.664,19.654,1.10430668]
[1693920095535,3.84030368,19.666,19.654,1.10430668]
[1693920095736,11.77230368,19.666,19.654,1.10430668]
[1693920096231,7.933,19.663,19.652,1.10430668]
[1693920096825,3.84030368,19.662,19.652,1.10430668]
[1693920097019,7.934,19.661,19.652,1.10430668]
[1693920097632,7.934,19.663,19.652,1.10430668]
[1693920097828,58.84030368,19.662,19.652,1.10430668]
[1693920098026,66.77430368,19.662,19.652,1.10430668]
[1693920098214,55.0,19.662,19.652,1.10430668]
[1693920098418,3.84030368,19.668,19.652,1.10430668]
[1693920098419,55.0,19.663,19.652,1.10430668]
[1693920098620,3.84030368,19.662,19.652,1.10430668]
[1693920099139,7.934,19.66,19.652,1.10430668]
[1693920099429,7.936,19.656,19.641,1.10430668]
[1693920099635,3.84030368,19.655,19.641,1.10430668]
[1693920099842,7.936,19.656,19.641,1.10430668]
[1693920100037,7.936,19.655,19.641,1.10430668]
[1693920100333,7.936,19.655,19.641,21.10430668]
[1693920100830,7.936,19.657,19.641,21.10430668]
[1693920101034,3.84030368,19.656,19.641,21.10430668]
[1693920101233,3.84030368,19.656,19.642,55.0]
[1693920101437,3.84030368,19.658,19.643,21.10430668]
[1693920101627,58.84030368,19.658,19.643,21.10430668]
[1693920101937,66.77530368,19.658,19.643,21.10430668]
[1693920103534,58.84030368,19.658,19.643,21.10430668]
[1693920103735,55.0,19.657,19.643,21.10430668]
[1693920103920,3.84030368,19.656,19.643,21.10430668]
[1693920104125,3.84030368,19.658,19.643,21.10430668]
[1693920104626,3.84030368,19.658,19.644,55.0]
[1693920104826,11.77530368,19.658,19.645,21.10430668]
[1693920105440,3.84030368,19.658,19.645,21.10430668]
[1693920107851,3.84030368,19.659,19.646,55.0]
[1693920108057,7.935,19.659,19.647,1.10430668]
[1693920109333,7.935,19.659,19.644,1.10430668]
[1693920109534,3.84030368,19.657,19.644,1.10430668]
[1693920110449,3.84030368,19.658,19.644,1.10430668]
[1693920110955,3.84030368,19.658,19.644,56.10430668]
[1693920111246,3.84030368,19.659,19.646,1.10430668]
[1693920112940,3.84030368,19.661,19.646,1.10430668]
[1693920113149,58.84030368,19.661,19.646,1.10430668]
[1693920113449,58.84030368,19.661,19.65,31.45]
[1693920113649,3.84030368,19.661,19.65,31.45]
[1693920113842,3.84030368,19.661,19.651,1.10430668]
[1693920114147,11.77430368,19.661,19.651,1.10430668]
[1693920114352,11.77430368,19.661,19.646,1.10430668]
[1693920114552,11.77430368,19.661,19.646,56.10430668]
[1693920118639,55.0,19.66,19.646,1.10430668]
[1693920118842,7.936,19.658,19.646,1.10430668]
[1693920119144,3.84030368,19.657,19.645,56.10430668]
[1693920119341,11.77630368,19.657,19.645,56.10430668]
[1693920121453,3.84030368,19.657,19.645,56.10430668]
[1693920123355,3.84030368,19.657,19.645,71.51825779]
[1693920123946,3.84030368,19.657,19.645,16.51825779]
[1693920123947,11.77630368,19.657,19.645,16.51825779]
[1693920124748,55.0,19.656,19.645,16.51825779]
[1693920124953,7.937,19.654,19.645,16.51825779]
[1693920126553,7.936,19.655,19.645,16.51825779]
[1693920127154,11.77630368,19.655,19.645,16.51825779]
[1693920127453,7.936,19.655,19.645,16.51825779]
[1693920128255,55.0,19.654,19.645,16.51825779]
[1693920128452,7.938,19.652,19.645,1.10430668]
[1693920128762,7.938,19.652,19.643,21.10430668]
[1693920129147,62.937,19.654,19.643,21.10430668]
[1693920129345,62.937,19.654,19.643,1.10430668]
[1693920129546,118.905,19.654,19.64,56.99592666]
[1693920132064,118.905,19.654,19.641,1.10430668]
[1693920132268,118.905,19.654,19.64,15.28105905]
[1693920133574,118.905,19.654,19.641,0.60430668]
[1693920134358,62.937,19.654,19.641,0.60430668]
[1693920135167,7.937,19.654,19.641,0.60430668]
[1693920136764,7.938,19.652,19.641,0.60430668]
[1693920137060,55.0,19.651,19.64,15.28105905]
[1693920137260,7.938,19.651,19.641,0.60430668]
[1693920137466,31.45,19.65,19.636,0.60430668]
[1693920137666,7.94,19.646,19.636,0.60430668]
[1693920138060,7.941,19.644,19.632,0.60430668]
[1693920139259,55.0,19.643,19.632,0.60430668]
[1693920139464,7.94,19.645,19.632,0.60430668]
[1693920139964,55.0,19.644,19.632,0.60430668]
[1693920140270,55.0,19.645,19.632,0.60430668]
[1693920141366,62.941,19.645,19.632,0.60430668]
[1693920143868,88.596,19.645,19.632,0.60430668]
[1693920146880,62.941,19.645,19.632,0.60430668]
[1693920150181,7.941,19.645,19.632,0.60430668]
[1693920151567,55.0,19.644,19.632,0.60430668]
[1693920151768,62.941,19.644,19.632,0.60430668]
[1693920155368,62.941,19.644,19.631,0.60430668]
[1693920157572,7.941,19.644,19.631,0.60430668]
[1693920157970,7.94,19.646,19.631,0.60430668]
[1693920158181,20.0,19.645,19.631,0.60430668]
[1693920158386,27.94,19.645,19.631,0.60430668]
[1693920158682,99.6629,19.648,19.631,75.60430668]
[1693920158877,55.0,19.647,19.631,75.60430668]
[1693920160085,7.94,19.646,19.631,75.60430668]
[1693920160776,7.942,19.641,19.631,20.60430668]
[1693920161089,7.942,19.643,19.631,20.60430668]
[1693920161301,55.0,19.642,19.631,20.60430668]
[1693920162981,55.0,19.643,19.631,20.60430668]
[1693920163391,107.6029,19.648,19.631,20.60430668]
[1693920163580,62.94,19.647,19.631,74.66388084]
[1693920164592,55.0,19.647,19.631,74.66388084]
[1693920165695,62.94,19.647,19.631,74.66388084]
[1693920167387,55.0,19.647,19.632,55.0]
[1693920167582,55.0,19.647,19.633,20.60430668]
[1693920168483,62.94,19.647,19.633,20.60430668]
[1693920169697,62.94,19.647,19.632,0.60430668]
[1693920170291,62.94,19.647,19.632,20.60430668]
[1693920170700,62.94,19.647,19.632,0.60430668]
[1693920171081,99.6629,19.648,19.632,0.60430668]
[1693920171898,20.0,19.647,19.632,0.60430668]
[1693920172101,7.941,19.643,19.631,0.60430668]
[1693920172597,7.943,19.64,19.631,0.60430668]
[1693920172783,55.0,19.639,19.63,31.45]
[1693920172981,62.943,19.639,19.63,31.45]
[1693920173593,62.943,19.639,19.631,0.5537302]
[1693920175283,55.0,19.639,19.631,0.5537302]
[1693920175488,55.0,19.64,19.63,31.45]
[1693920175885,62.943,19.64,19.63,31.45]
[1693920177485,55.0,19.64,19.63,31.45]
[1693920177686,55.0,19.641,19.631,0.60430668]
[1693920178088,96.0546,19.642,19.631,0.60430668]
[1693920178799,7.942,19.642,19.631,0.60430668]
[1693920179499,7.941,19.644,19.631,0.60430668]
[1693920179684,94.4093,19.646,19.631,0.60430668]
[1693920179685,62.941,19.643,19.631,0.60430668]
[1693920180016,62.941,19.643,19.63,31.45]
[1693920185099,7.941,19.643,19.63,31.45]
[1693920188400,55.0,19.642,19.63,31.45]
[1693920188597,7.943,19.64,19.63,31.45]
[1693920189303,55.0,19.639,19.628,59.06302846]
[1693920189507,33.611,19.636,19.622,52.62221989]
[1693920189708,55.0,19.635,19.623,20.60430668]
[1693920190009,7.946,19.632,19.623,20.60430668]
[1693920190399,7.946,19.632,19.624,20.0]
[1693920190599,7.946,19.632,19.625,0.60430668]
[1693920190911,7.945,19.634,19.622,0.60430668]
[1693920191114,55.0,19.635,19.622,0.60430668]
[1693920191409,92.4935,19.633,19.622,0.60430668]
[1693920200307,55.0,19.632,19.622,0.60430668]
[1693920200517,55.0,19.632,19.621,0.60430668]
[1693920200809,55.0,19.632,19.62,47.02186543]
[1693920201998,62.946,19.632,19.621,0.60430668]
[1693920202199,62.946,19.632,19.62,31.45]
[1693920205015,55.0,19.632,19.62,31.45]
[1693920205208,7.945,19.634,19.62,31.45]
[1693920205411,7.944,19.636,19.621,20.60430668]
[1693920205614,93.3794,19.636,19.621,20.60430668]
[1693920206507,101.3234,19.636,19.621,20.60430668]
[1693920207812,93.3794,19.636,19.622,55.0]
[1693920208004,93.3794,19.636,19.623,20.60430668]
[1693920208209,55.0,19.635,19.623,0.60430668]
[1693920208409,62.945,19.635,19.622,0.60430668]
[1693920208711,62.945,19.635,19.621,0.60430668]
[1693920209815,62.945,19.635,19.62,31.45]
[1693920210910,62.945,19.635,19.621,0.60430668]
[1693920211906,62.945,19.635,19.62,31.45]
[1693920212613,62.945,19.635,19.621,0.57038035]
[1693920212820,62.945,19.635,19.62,31.45]
[1693920213507,62.945,19.635,19.621,0.55544777]
[1693920213709,62.945,19.635,19.62,31.45]
[1693920214108,62.945,19.635,19.621,0.53138771]
[1693920214307,62.945,19.635,19.62,31.45]
[1693920214818,62.945,19.635,19.621,0.58150857]
[1693920215914,62.945,19.635,19.62,31.45]
[1693920217407,62.945,19.635,19.621,0.60430668]
[1693920220315,62.945,19.635,19.62,31.45]
[1693920225738,149.3994,19.636,19.62,31.45]
[1693920225739,93.3794,19.636,19.621,20.0]
[1693920225912,101.3234,19.636,19.622,0.60430668]
[1693920226112,101.3234,19.636,19.621,0.60430668]
[1693920226113,20.0,19.635,19.621,0.60430668]
[1693920226317,7.945,19.634,19.62,138.13179405]
[1693920226523,7.945,19.634,19.621,0.60430668]
[1693920226725,7.945,19.634,19.62,138.13179405]
[1693920228128,7.945,19.634,19.62,85.50957416]
[1693920228323,7.945,19.634,19.62,31.45]
[1693920230330,55.0,19.633,19.62,31.45]
[1693920230628,62.945,19.633,19.62,31.45]
[1693920236334,88.616,19.633,19.615,121.8041182]
[1693920236533,88.616,19.633,19.616,0.60430668]
[1693920236928,88.616,19.633,19.612,20.60430668]
[1693920237529,88.616,19.633,19.613,55.0]
[1693920237733,88.616,19.633,19.614,20.60430668]
[1693920238331,113.97993245,19.633,19.614,20.60430668]
[1693920239628,88.616,19.633,19.615,55.0]
[1693920239828,88.616,19.633,19.616,0.60430668]
[1693920240643,88.616,19.633,19.62,31.45]
[1693920242946,88.616,19.633,19.615,55.0]
[1693920242947,31.45,19.63,19.614,20.0]
[1693920243238,7.948,19.626,19.615,0.60430668]
[1693920243452,7.948,19.628,19.614,55.60430668]
[1693920243638,7.948,19.628,19.615,20.0]
[1693920243839,7.948,19.628,19.616,0.60430668]
[1693920244347,7.948,19.628,19.616,55.60430668]
[1693920249048,7.948,19.628,19.616,0.60430668]
[1693920249449,7.948,19.628,19.615,0.60430668]
[1693920249648,25.671,19.633,19.615,0.60430668]
[1693920249850,55.0,19.632,19.62,31.45]
[1693920250052,7.947,19.63,19.62,31.45]
[1693920255967,136.00614986,19.634,19.62,31.45]
[1693920257051,7.946,19.633,19.62,31.45]
[1693920257953,112.3125516,19.637,19.62,31.45]
[1693920258157,25.661,19.641,19.621,75.60430668]
[1693920258356,7.943,19.638,19.621,75.60430668]
[1693920258857,20.0,19.637,19.621,32.05430668]
[1693920259057,33.618,19.633,19.62,31.45]
[1693920259253,55.0,19.632,19.616,40.33027522]
[1693920259454,55.0,19.632,19.612,15.55685874]
[1693920259455,7.948,19.628,19.612,15.55685874]
[1693920259660,7.948,19.628,19.613,0.60430668]
[1693920259855,7.948,19.628,19.62,31.45]
[1693920261866,33.625,19.628,19.613,0.60430668]
[1693920262465,89.667,19.628,19.612,20.60430668]
[1693920262668,20.0,19.627,19.612,0.60430668]
[1693920262870,33.634,19.623,19.61,46.53715595]
[1693920263160,7.95,19.622,19.61,46.53715595]
[1693920263663,7.951,19.62,19.61,31.45]
[1693920264771,55.0,19.619,19.61,31.45]
[1693920264956,7.952,19.617,19.61,31.45]
[1693920265267,62.951,19.619,19.61,31.45]
[1693920265463,62.951,19.619,19.605,40.11824668]
[1693920265760,62.951,19.619,19.595,0.60430668]
[1693920265761,7.954,19.611,19.595,0.60430668]
[1693920265966,7.954,19.611,19.594,15.7312827]
[1693920266162,7.954,19.611,19.596,0.60430668]
[1693920267355,25.698,19.613,19.596,0.60430668]
[1693920267356,62.955,19.61,19.596,0.60430668]
[1693920267569,7.955,19.61,19.596,0.60430668]
[1693920268672,7.955,19.61,19.596,55.60430668]
[1693920269367,94.0289,19.612,19.596,55.60430668]
[1693920269571,101.9829,19.612,19.596,55.60430668]
[1693920270455,94.0289,19.612,19.596,67.40902668]
[1693920271152,94.0289,19.612,19.597,11.80411]
[1693920271357,7.954,19.613,19.599,0.60430668]
[1693920271764,7.954,19.613,19.6,31.63]
[1693920271964,7.954,19.613,19.601,55.0]
[1693920272367,7.953,19.615,19.601,55.0]
[1693920272562,7.951,19.62,19.602,32.40540668]
[1693920272758,90.65589595,19.62,19.602,12.40540668]
[1693920272960,25.36393245,19.619,19.602,11.8011]
[1693920273160,7.953,19.614,19.602,11.8011]
[1693920273360,7.953,19.614,19.595,20.0]
[1693920273560,7.953,19.614,19.596,0.60430668]
[1693920274965,7.953,19.614,19.596,55.60430668]
[1693920276261,7.953,19.614,19.596,67.40902668]
[1693920279266,7.95,19.622,19.602,80.905]
[1693920279568,7.95,19.622,19.603,100.96823913]
[1693920280074,7.95,19.622,19.603,195.29023913]
[1693920280373,7.949,19.624,19.61,31.63]
[1693920280576,7.949,19.624,19.611,55.0]
[1693920280775,99.7513,19.631,19.611,55.0]
[1693920280970,7.947,19.63,19.612,20.60430668]
[1693920281276,7.947,19.63,19.613,55.0]
[1693920281475,7.947,19.63,19.614,20.0]
[1693920281662,7.947,19.63,19.615,55.0]
[1693920282375,7.947,19.63,19.614,20.0]
[1693920282577,7.947,19.63,19.612,20.0]
[1693920282779,7.947,19.63,19.613,55.60430668]
[1693920282972,7.947,19.63,19.614,20.0]
[1693920283277,7.947,19.63,19.615,55.0]
[1693920285582,7.947,19.63,19.614,20.0]
[1693920285776,55.0,19.629,19.612,20.0]
[1693920285983,7.949,19.624,19.613,55.0]
[1693920286176,7.949,19.624,19.611,20.0]
[1693920286177,7.949,19.624,19.614,20.0]
[1693920286577,7.948,19.626,19.614,20.0]
[1693920286784,7.948,19.627,19.613,20.0]
[1693920286988,7.948,19.627,19.614,55.0]
[1693920287280,7.948,19.627,19.615,20.0]
[1693920288383,7.448,19.627,19.615,20.0]
[1693920290077,7.448,19.627,19.61,143.25999999]
[1693920290282,55.0,19.626,19.61,103.26]
[1693920290484,7.949,19.624,19.611,20.0]
[1693920296595,7.949,19.624,19.61,31.63]
[1693920296787,7.949,19.624,19.611,54.5]
[1693920301093,7.949,19.624,19.61,31.63]
[1693920301287,7.95,19.621,19.61,31.63]
[1693920303802,7.95,19.621,19.609,15.39010708]
[1693920305002,33.636,19.621,19.609,15.39010708]
[1693920305203,55.0,19.62,19.602,131.152184]
[1693920305409,7.953,19.615,19.603,20.60430668]
[1693920306109,7.953,19.615,19.603,20.0]
[1693920306408,7.953,19.615,19.604,0.60430668]
[1693920306795,7.953,19.615,19.602,15.34268229]
[1693920307109,7.953,19.615,19.603,20.60430668]
[1693920307295,7.953,19.615,19.603,20.0]
[1693920307503,7.952,19.617,19.604,0.60430668]
[1693920308407,7.952,19.617,19.603,20.0]
[1693920310115,7.952,19.617,19.6,31.63]
[1693920310423,55.0,19.616,19.601,20.60430668]
[1693920310726,7.953,19.614,19.601,20.0]
[1693920310910,7.953,19.614,19.6,31.63]
[1693920311109,7.953,19.614,19.599,14.94339622]
[1693920311624,7.953,19.614,19.6,0.51843704]
[1693920312309,7.953,19.614,19.6,55.51843704]
[1693920313110,7.953,19.614,19.601,11.8017]
[1693920313311,7.953,19.614,19.602,55.0]
[1693920317929,7.953,19.614,19.601,11.8017]
[1693920318523,7.953,19.614,19.602,55.0]
[1693920319521,7.95,19.622,19.603,20.0]
[1693920319832,7.95,19.622,19.604,67.40420668]
[1693920320029,7.95,19.622,19.605,31.7993]
[1693920320332,7.95,19.622,19.606,67.40299668]
[1693920321218,7.95,19.622,19.606,66.79869]
[1693920321620,7.95,19.622,19.607,0.57428233]
[1693920322427,7.95,19.622,19.606,66.79869]
[1693920322935,7.95,19.622,19.607,0.60430668]
[1693920323326,7.95,19.622,19.606,66.79869]
[1693920323523,15.57521672,19.628,19.61,31.63]
[1693920323731,20.0,19.627,19.611,55.60430668]
[1693920324025,7.948,19.626,19.611,55.0]
[1693920324225,20.0,19.625,19.611,55.0]
[1693920324425,27.949,19.625,19.611,55.0]
[1693920325131,27.949,19.625,19.611,66.79569]
[1693920325826,26.629888,19.638,19.612,20.0]
[1693920326035,26.629888,19.638,19.613,55.60430668]
[1693920326036,7.946,19.632,19.613,55.60430668]
[1693920326338,7.946,19.632,19.614,31.79388]
[1693920326541,7.946,19.632,19.615,67.39758668]
[1693920326720,7.946,19.632,19.615,66.79328]
[1693920334234,7.946,19.632,19.616,11.79268]
[1693920334545,7.946,19.632,19.617,55.0]
[1693920338038,7.946,19.632,19.62,31.55]
[1693920338346,7.946,19.632,19.621,55.0]
[1693920339657,7.945,19.634,19.621,55.0]
[1693920339835,7.946,19.632,19.621,55.0]
[1693920340036,7.946,19.632,19.621,66.78967]
[1693920346154,7.946,19.632,19.621,133.57934]
[1693920346455,7.945,19.634,19.622,20.0]
[1693920346652,7.945,19.634,19.623,55.0]
[1693920346855,7.945,19.634,19.624,20.0]
[1693920348056,7.945,19.634,19.622,20.0]
[1693920349552,7.945,19.634,19.621,11.78967]
[1693920349757,55.0,19.633,19.612,86.9845]
[1693920349949,33.627,19.627,19.613,20.60430668]
[1693920350451,33.627,19.627,19.613,20.0]
[1693920350764,33.627,19.627,19.613,0.60430668]
[1693920351442,33.627,19.627,19.612,0.60430668]
[1693920352358,33.627,19.627,19.612,55.60430668]
[1693920352865,33.627,19.627,19.614,0.60430668]
[1693920353062,33.627,19.627,19.614,55.0]
[1693920353246,33.627,19.627,19.615,20.0]
[1693920354754,55.0,19.626,19.61,31.55]
[1693920354957,7.95,19.621,19.61,31.55]
[1693920357956,7.95,19.621,19.609,15.45283018]
[1693920358648,7.95,19.622,19.61,55.0]
[1693920360256,7.947,19.629,19.613,20.0]
[1693920360454,7.947,19.629,19.614,55.0]
[1693920360655,7.947,19.629,19.615,20.0]
[1693920360855,7.947,19.629,19.616,55.0]
[1693920366870,7.947,19.629,19.615,20.0]
[1693920366871,63.986,19.629,19.615,20.0]
[1693920367049,63.986,19.629,19.614,20.0]
[1693920367868,7.947,19.629,19.614,20.0]
[1693920377567,7.947,19.629,19.613,11.79448]
[1693920377876,7.947,19.629,19.614,75.0]
[1693920378480,7.947,19.629,19.614,20.0]
[1693920378783,55.0,19.628,19.614,20.0]
[1693920378976,7.949,19.624,19.614,20.0]
[1693920379478,7.949,19.624,19.611,20.0]
[1693920380378,64.002,19.624,19.608,57.256]
[1693920380766,64.002,19.624,19.605,100.95682801]
[1693920380767,64.002,19.624,19.605,142.4132278]
[1693920381877,55.0,19.623,19.605,142.4132278]
[1693920382076,7.951,19.619,19.605,142.4132278]
[1693920383375,7.951,19.619,19.605,91.70358353]
[1693920388765,7.951,19.619,19.605,50.24718374]
[1693920388969,7.951,19.619,19.602,25.36393245]
[1693920389283,7.951,19.619,19.603,75.0]
[1693920389869,7.951,19.619,19.603,20.0]
[1693920390175,55.0,19.618,19.603,20.0]
[1693920390377,55.0,19.618,19.601,20.0]
[1693920390378,7.953,19.614,19.601,20.0]
[1693920391073,33.648,19.614,19.601,20.0]
[1693920391969,7.953,19.614,19.601,20.0]
[1693920392171,55.0,19.613,19.601,20.0]
[1693920392492,7.955,19.611,19.597,0.60430668]
[1693920392667,7.955,19.611,19.6,31.58]
[1693920392868,7.955,19.611,19.601,0.60430668]
[1693920393168,7.955,19.611,19.6,31.58]
[1693920393368,7.954,19.613,19.6,31.58]
[1693920393578,7.954,19.613,19.601,0.60430668]
[1693920393791,7.954,19.613,19.601,55.60430668]
[1693920393982,7.954,19.613,19.601,0.60430668]